{"text_format":"3","workbook":"xlsx","n_sheets":2,"sheets":["sheet1","利用上の注意事項"],"not_rendered":{"images":11,"macros":1,"defined_names":1},"read":"whole","date_system":"1900"}

{"sheet":"sheet1","index":0,"n_rows":130,"n_cols":24,"rows_kept":130}
["当事者情報ＣＳＶファイル作成ツール",{"$nulls":9},"■１①のマクロの有効化",null,null,"■１②～④の操作イメージ"]
[]
["■1■マクロ有効化手順"]
["①「コンテンツの有効化」をクリックし、マクロを有効化してください。CSV出力ボタンを使用可能になります。"]
["※上記の手順では有効化できない場合、一旦ファイルを閉じて、②～④を実施してください。"]
["②作成ツールを右クリックし、ファイルのプロパティを開いてください。"]
["③右のイメージのとおり、「セキュリティ：このファイルは～（略）」について、「許可する」にチェック✅をしてください。"]
["④「OK」をクリックして、もう１度ファイルを開いてください。"]
[]
["■2■CSV作成手順"]
["①以下の「必須／任意」、「入力制限」、「文字数制限」、「説明」を確認の上で、31行目以下のB列～X列を入力してください。サンプルも適宜ご参照ください。"]
["　　※各列のセルに対し、入力制限の設定を行っています。「切り取り」や「異なる列をコピー＆ペースト」・「他のExcelからのコピー＆ペースト」をしてしまうと、設定が崩れますので、ご注意ください。（同じ列内であれば、コピー＆ペースト可能です。）"]
["　　※各列のセルの入力制限は、他のExcelからの「値貼り付け」やメモ帳からの「貼り付け」では機能しません。当Excelに直接入力してください。"]
["②入力が完了したら、右の「CSV出力ボタン」をクリックしてください。デスクトップにCSVファイルが作成されます。"]
["③作成されたCSVファイルを、そのままmintsにアップロードしてください。編集や訂正が必要な場合は、CSVファイルを直接編集・訂正せずに、このツールを利用して作成し直してください。"]
[]
[]
[]
[]
[]
["項目名","通番","属性","提起側・相手側","肩書","氏名又は名称","住所","建物名・部屋番号","郵便番号","電話番号","FAX番号","Emailアドレス","代表者名","代表資格","送達場所届出郵便番号","送達場所届出住所1","送達場所届出住所2","送達場所届出電話番号","送達場所届出FAX番号","送達場所届出受取人","就業場所郵便番号","就業場所住所1","就業場所住所2","就業場所電話番号"]
["必須／任意","【必須】","【必須】","【必須】","【必須】","【必須】","【必須】","任意","任意","任意","任意","任意","任意","任意","任意","任意","任意","任意","任意","任意","任意","任意","任意","任意"]
["入力制限","半角数字のみ","半角数字のみ","半角数字のみ","全角のみ","全角のみ","全角のみ","全角のみ","半角数字のみ","半角数字と-(ハイフン)のみ",null,"メールアドレス(半角)","全角のみ","全角のみ","半角数字のみ","全角のみ","全角のみ","半角数字と-(ハイフン)のみ",null,"全角のみ",null,"全角のみ","全角のみ","半角数字と-(ハイフン)のみ"]
["文字数制限","10桁以下","2桁","2桁","50文字以下","200文字以下","100文字以下","100文字以下","7文字","18文字以下","18文字以下","250文字以下","200文字以下","60文字以下","7桁","100文字以下","100文字以下","18文字以下","18文字以下","100文字以下","7桁","100文字以下","100文字以下","18文字以下"]
["説明","通番です。\n不要分はかならず削除してください。","01～02を選択してください。それぞれ以下のとおりです。\n01:当事者・関係者等\n02:代理人\n","01～02を選択してください。それぞれ以下のとおりです。\n01:提起側\n02:相手側","肩書を入力してください。","個人の氏名又は法人の名称を入力してください。氏と名の間に全角スペースを入れてください。\n","都道府県・市区町村・町名・地番を入力してください。","建物名・部屋番号を入力してください。","郵便番号を入力してください。（ハイフンは入力しないでください。）","電話番号を入力してください。","FAX番号を入力してください。","メールアドレスを入力してください。","「01:当事者・関係者」で法人の場合に、代表者名を入力してください。","代表者の代表資格を入力してください。","送達場所の、\n郵便番号を入力してください。（ハイフンは入力しないでください。）","送達場所の、\n住所を入力してください。","送達場所の、\n住所1では入力文字数が足りない場合などに適宜入力してください。","送達場所の、\n電話番号を入力してください。","送達場所の、\nFAX番号を入力してください。","送達場所の、\n受取人氏名を入力してください。","就業場所の、\n郵便番号を入力してください。（ハイフンは入力しないでください。）","就業場所の、\n住所を入力してください。","就業場所の、\n住所1では入力文字数が足りない場合などに適宜入力してください。","就業場所の、\n電話番号を入力してください。"]
["サンプル","1","01","01","原告","原告　花子","東京都千代田区隼町４－２","最高裁アパート１０１","1028651"]
["サンプル","2","02","01","原告代理人","代理人　太郎","東京都千代田区霞が関１－１－４","東地ビル１０階１００１号","1008920","1234567890","2345678901","dairinin@sample.com"]
["サンプル","3","01","02","被告","被告　二郎","東京都世田谷区上祖師谷０－０－０","○○マンション３号","1570065"]
["サンプル","4","01","02","被告","株式会社公正製作所","東京都世田谷区上祖師谷０－０－１","公平ビル１階","1570065",{"$nulls":3},"公正　中立","代表者代表取締役"]
[null,"セクション名","当事者等分類","当事者等種別","当事者等肩書","氏名･法人名","住所1","住所2","郵便番号","電話番号","FAX番号","Emailアドレス","代表者名","代表資格","送達場所届出郵便番号","送達場所届出住所1","送達場所届出住所2","送達場所届出電話番号","送達場所届出FAX番号","送達場所届出受取人","就業場所郵便番号","就業場所住所1","就業場所住所2","就業場所電話番号"]
[null,{"$f":"ROW()-ROW($B$30)","v":1}]
[null,{"$f":"ROW()-ROW($B$30)","v":2}]
[null,3]
[null,4]
[null,5]
[null,6]
[null,7]
[null,8]
[null,9]
[null,10]
[null,11]
[null,12]
[null,13]
[null,14]
[null,15]
[null,16]
[null,17]
[null,18]
[null,19]
[null,20]
[null,21]
[null,22]
[null,23]
[null,24]
[null,25]
[null,26]
[null,27]
[null,28]
[null,29]
[null,30]
[null,31]
[null,32]
[null,33]
[null,34]
[null,35]
[null,36]
[null,37]
[null,38]
[null,39]
[null,40]
[null,41]
[null,42]
[null,43]
[null,44]
[null,45]
[null,46]
[null,47]
[null,48]
[null,49]
[null,50]
[null,51]
[null,52]
[null,53]
[null,54]
[null,55]
[null,56]
[null,57]
[null,58]
[null,59]
[null,60]
[null,61]
[null,62]
[null,63]
[null,64]
[null,65]
[null,{"$f":"ROW()-ROW($B$30)","v":66}]
[null,67]
[null,68]
[null,69]
[null,70]
[null,71]
[null,72]
[null,73]
[null,74]
[null,75]
[null,76]
[null,77]
[null,78]
[null,79]
[null,80]
[null,81]
[null,82]
[null,83]
[null,84]
[null,85]
[null,86]
[null,87]
[null,88]
[null,89]
[null,90]
[null,91]
[null,92]
[null,93]
[null,94]
[null,95]
[null,96]
[null,97]
[null,98]
[null,99]
[null,100]

{"sheet":"利用上の注意事項","index":1,"n_rows":143,"n_cols":13,"rows_kept":143,"merged":[[0,0,0,13],[131,6,132,8]]}
["利 用 上 の 注 意 事 項"]
[{"$nulls":12},"最高裁判所"]
[]
[" 本ツールは、民事裁判書類電子提出システム（mints）の「新規申立てフォーム」画面にアップロードする当事者情報CSVファイルを作成するために利用"]
[" するものです。本ツールは、必ず次に定める注意事項に従って利用してください。"]
[]
[]
["１　禁止事項"]
[]
["本ツールの利用者は、以下の行為をしてはなりません。"]
[]
["1. 目的外利用の禁止"]
["　　本ツールは、mintsの「新規申立てフォーム」画面にアップロードする当事者情報CSVファイルを作成するために利用します。それ以外を目的とした利用は"]
["　　禁止します。"]
["2. 改変の禁止"]
["　  本ツールの全部又は一部に対して、改変、加工、一部抜粋、マージ、他プログラムへの組込みを行うことは禁止します。"]
["3. 技術的解析の禁止"]
["　  リバースエンジニアリング、逆コンパイル、逆アセンブルその他の解析行為は禁止します。"]
["4. 再配布等の禁止"]
["　　本ツールの全部又は一部を第三者へ再配布、譲渡、賃貸、販売・公開する行為は禁止します。"]
["5. 権利表示の削除又は改変の禁止"]
[" 　 本ツールの著作権表示、利用上の注意事項（本シート）等を削除・変更する行為は禁止します。 "]
[]
[]
["２　電子署名の確認方法"]
[]
["1. 本ツールの提供者（最高裁判所）は、本ツールの改ざん防止のため、電子署名を付します。"]
["2. 利用者は、本ツールを利用する前に、以下の手順で署名を確認してください。"]
[]
["①　本ツールを右クリックし、「プロパティ」を選択します。"]
{"$rows_empty":20}
["➁　「全般」タブの下部にある「セキュリティ」の「□許可する(K)」にチェックを入れます。"]
["　　「適用」をクリックし、「OK」をクリックします。"]
{"$rows_empty":16}
["③　本ツールを開きます。"]
["　　 画面上部に次の表示がされますので、「署名の表示...」をクリックします。"]
{"$rows_empty":8}
["④　画面右側に次のとおり電子署名の内容が表示されます（署名が見切れている場合は幅を広げてください。）。"]
["     以上で電子署名の確認は終了です。"]
{"$rows_empty":13}
["【本ツールを利用する場合の電子署名の削除について】"]
[]
["①　上記の電子署名の確認後、本ツールを利用する際は、「コンテンツの有効化」をクリック（２回クリックする必要がある場合があります）し、「編集する」　"]
["　　 をクリックします。"]
{"$rows_empty":8}
["　➁　次の画面が表示されますので、「はい」をクリックします。"]
{"$rows_empty":11}
["　③　次の画面が表示されますので、「OK」をクリックします。"]
{"$rows_empty":9}
["④　これにより電子署名は削除されますが、電子署名が付されていることを確認済みであれば、電子署名が削除されたまま利用していただいて差支えありません。"]
[]
[]
[]
[{"$nulls":6},"電子署名が削除された状態"]
[]
[]
[]
[]
[]
["３　動作確認環境"]
[]
["ОＳ：Windows 11"]
["Excel：Microsoft 365"]
["※上記環境で動作確認しています。"]
["※Mac版Excelは動作未確認です。"]